[Event "ITT 1st Parada Jamundi 2022"]
[Site "Jamundi Valle"]
[Date "2022.12.09"]
[Round "6.6"]
[White "Lopez Rayo, Santiago"]
[Black "Aguero Jimenez, Luis Lazaro"]
[Result "0-1"]
[ECO "B43"]
[WhiteElo "2300"]
[BlackElo "2465"]
[Annotator "TA"]
[PlyCount "72"]
[EventDate "2022.12.05"]
[EventType "swiss"]
[EventCountry "COL"]
[SourceTitle "playchess.com"]
[Source "ChessBase"]
[SourceQuality "1"]
[TimeControl "5400+30"]

{[%evp 14,72,31,21,34,46,68,58,56,67,72,71,65,0,0,0,0,0,14,0,0,0,0,9,11,4,15,0,18,0,0,0,0,-20,-44,-159,-167,-318,-295,-313,-308,-297,-298,-375,-347,-414,-406,-404,-395,-772,-538,-773,-762,-732,-702,-790,-787,-836,-834,-770,-746]} 1. e4 {[%emt 0:00:06]} c5 {[%emt 0:00:04]} 2. Nf3 {[%emt 0:00:18]} e6 {[%emt 0:00:03]} 3. d4 {[%emt 0:00:11]} cxd4 {[%emt 0:00:04]} 4. Nxd4 {[%emt 0:00:08]} a6 {[%emt 0:00:02]} 5. Nc3 {[%emt 0:00:26]} b5 {[%emt 0:00:05]} 6. Bd3 {[%emt 0:00:44]} Qb6 {[%emt 0:00:10]} 7. Nf3 {[%emt 0:00:38]} Qc7 $1 {[%emt 0:00:14] The main line 7...Qc7 scores better than 7...Nc6.} 8. O-O {[%emt 0:00:41]} Bb7 {[%emt 0:00:25] B43: Sicilian: Kan Variation: 5 Nc3.} 9. Re1 {[%emt 0:00:52]} d6 {[%emt 0:14:10]} 10. Bd2 {[%emt 0:09:02]} Nd7 {[%emt 0:01:40] White is slightly better.} 11. a4 {[%emt 0:02:27] [#]} bxa4 $146 {[%emt 0:00:27]} ({Predecessor:} 11... b4 12. Na2 a5 13. c3 Nc5 14. Bb5+ Bc6 15. cxb4 axb4 16. Nxb4 Bxb5 17. axb5 Qb7 18. Rxa8+ Qxa8 {1-0 (27) Baskin,R (2390)-Warchol,K (2099) Chess.com INT 2021}) 12. Rxa4 {[%emt 0:10:38]} Be7 {[%emt 0:01:24]} 13. Be3 {[%emt 0:10:42]} (13. Qe2 $14) 13... Ngf6 $11 {[%emt 0:03:30][%cal Bg8f6,Bf6g4,Bg4e5][%mdl 32]} 14. Qe2 {[%emt 0:00:22]} O-O {[%emt 0:00:13]} 15. Rea1 {[%emt 0:08:08][%cal Rd3a6]} Rfb8 {[%emt 0:01:20]} 16. Nd2 {[%emt 0:05:18]} Ne5 {[%emt 0:04:36]} 17. Nb3 {[%emt 0:03:46]} Nxd3 {[%emt 0:12:39]} 18. Qxd3 {[%emt 0:00:12]} Ng4 {[%emt 0:04:48]} 19. Bf4 {[%emt 0:02:33] Inhibits d5.} Qb6 {[%emt 0:09:40]} 20. Qe2 {[%emt 0:02:24]} Ne5 {[%emt 0:02:04]} 21. Be3 {[%emt 0:03:06]} Qc7 {[%emt 0:02:02]} 22. Na5 {[%emt 0:04:17]} Bc8 {[%emt 0:01:11]} 23. f4 {[%emt 0:12:46]} Rxb2 {[%emt 0:00:40]} 24. Bd4 {[%emt 0:03:14]} (24. fxe5 $15 Qxc3 25. Rc4 Rxc2 26. Rxc3 Rxe2 27. Nc6) 24... Bd7 $1 $17 {[%emt 0:15:36] Black is more active.} 25. fxe5 $2 {[%emt 0:02:07] [#]} (25. R4a3) 25... Bxa4 $19 {[%emt 0:00:03]} 26. Nxa4 {[%emt 0:02:04]} Rxc2 {[%emt 0:00:29]} (26... Qxa5 $2 27. Bxb2 (27. Nxb2 $2 {is the wrong capture.} Qxa1+ 28. Qf1 Qxf1+ 29. Kxf1 dxe5 $19) 27... dxe5 28. Kh1 $16) 27. Bb6 {[%emt 0:04:56]} Qc8 {[%emt 0:04:41]} (27... Rxe2 $2 {loses.} 28. Bxc7 dxe5 29. Kf1 Rxe4 30. Nc6 $19) 28. Qe3 {[%emt 0:02:44]} dxe5 {[%emt 0:00:42]} 29. Rd1 {[%emt 0:02:53]} Qe8 {[%emt 0:01:35]} 30. Qb3 {[%emt 0:01:03]} Rac8 {[%emt 0:00:30][%cal Ba8c8,Bc8d8,Bd8d3,Bd3a3,Ba3a7][%mdl 32]} 31. Bf2 $2 {[%emt 0:02:39] [#]} (31. Nb7) 31... Qb5 {[%emt 0:03:17] Black is clearly winning.} 32. Qxb5 axb5 {[%emt 0:00:02]} 33. Nb6 {[%emt 0:01:39]} Rd8 {[%emt 0:00:22]} 34. Rf1 {[%emt 0:01:07]} Rd3 {[%emt 0:03:27]} 35. h3 {[%emt 0:01:43]} Ra3 {[%emt 0:00:44]} 36. Nb7 {[%emt 0:00:54]} Ra7 {[%emt 0:00:29] Weighted Error Value: White=0.62/Black=0.14 (very precise)} 0-1

[Event "ITT 1st Parada Jamundi 2022"]
[Site "Jamundi Valle"]
[Date "2022.12.09"]
[Round "6.7"]
[White "Rios, Cristhian Camilo"]
[Black "Arango Arenas, Juan Camilo"]
[Result "1-0"]
[ECO "A65"]
[WhiteElo "2456"]
[BlackElo "2202"]
[Annotator "TA"]
[PlyCount "89"]
[EventDate "2022.12.05"]
[EventType "swiss"]
[EventCountry "COL"]
[SourceTitle "playchess.com"]
[Source "ChessBase"]
[SourceQuality "1"]
[TimeControl "5400+30"]

{[%evp 21,89,19,30,0,0,-11,0,0,0,-68,-61,-65,-40,-80,-81,-88,-52,-54,17,18,39,31,50,50,52,0,25,25,35,25,40,0,0,0,0,0,0,-233,-204,-204,-147,0,62,74,233,240,250,250,259,237,236,170,167,170,459,447,433,422,455,412,733,656,1562,1547,1188,892,1683,1701,29964,29961]} 1. d4 {[%emt 0:00:03]} Nf6 {[%emt 0:04:59]} 2. c4 {[%emt 0:00:29]} c5 {[%emt 0:00:19]} 3. d5 {[%emt 0:00:24]} g6 {[%emt 0:00:23]} 4. Nc3 {[%emt 0:00:15]} Bg7 {[%emt 0:00:14]} 5. e4 {[%emt 0:00:15]} d6 {[%emt 0:00:06]} 6. f3 {[%emt 0:00:13]} e6 {[%emt 0:07:46]} 7. Bg5 {[%emt 0:01:31]} h6 {[%emt 0:00:47]} 8. Be3 {[%emt 0:00:09]} exd5 {[%emt 0:01:05]} 9. cxd5 {[%emt 0:00:17]} O-O {[%emt 0:00:08]} 10. Qd2 {[%emt 0:00:16]} Re8 {[%emt 0:00:25]} 11. Be2 $1 {[%emt 0:00:54][%mdl 4] is now more promising than 11.Nge2.} h5 {[%emt 0:03:13]} 12. Bd1 {[%emt 0:00:39] A65: Modern Benoni: 6 e4.} Nbd7 {[%emt 0:03:30]} 13. Nge2 {[%emt 0:01:01]} Ne5 {[%emt 0:00:30]} 14. b3 {[%emt 0:00:25] [#] Against Nc4. The position is equal.} b5 $146 {[%emt 0:04:36]} ({Predecessor:} 14... Bd7 15. a4 Nh7 16. O-O h4 17. h3 f5 18. Bc2 Qf6 19. Rad1 Rac8 20. Kh1 a6 21. a5 Qd8 {1-0 (43) Istratescu,A (2619)-David,A (2528) La Roche sur Yon 2007}) 15. O-O {[%emt 0:09:16]} (15. Nxb5 $11 Ba6 16. a4) 15... b4 $15 {[%emt 0:07:58]} 16. Na4 {[%emt 0:00:38]} a5 {[%emt 0:25:42]} 17. Nb2 {[%emt 0:04:33]} Ba6 {[%emt 0:00:39][%cal Oe5g4]} 18. Rc1 {[%emt 0:00:41]} Rc8 {[%emt 0:01:52]} 19. h3 {[%emt 0:01:25]} c4 {[%emt 0:04:45]} (19... Nfd7 $15) 20. bxc4 $1 $11 {[%emt 0:00:20]} Nxc4 {[%emt 0:00:04]} (20... Bxc4 {keeps more tension.} 21. Ba4 Re7 22. Bb3 Ba6) 21. Nxc4 {[%emt 0:00:07]} Rxc4 {[%emt 0:01:14]} 22. Ba4 {[%emt 0:06:16]} Re7 {[%emt 0:10:35][%cal Of6e4]} 23. Nd4 {[%emt 0:07:08]} (23. Rxc4 $1 $14 Bxc4 24. Rd1) 23... Rxd4 {[%emt 0:03:30]} 24. Bxd4 {[%emt 0:02:08] [#] aiming for Rf2.} (24. Qxd4 $2 Bxf1 25. Qb6 Qxb6 26. Bxb6 Bd3 $19) 24... Bxf1 {[%emt 0:00:05]} 25. Kxf1 {[%emt 0:01:18] Threatens to win with Rc6.} Nd7 $1 {[%emt 0:09:42]} 26. Bxd7 {[%emt 0:01:47]} Rxd7 {[%emt 0:00:11]} 27. Rc6 {[%emt 0:00:11]} Rb7 {[%emt 0:02:59] Against Bb6} 28. Qc2 {[%emt 0:01:21]} Rb8 {[%emt 0:01:34] Inhibits Rc8.} (28... Bxd4 $2 29. Rc8 Rd7 30. Rxd8+ Rxd8 31. Qc7 $18) 29. Bb6 {[%emt 0:06:35] [#]} Qf6 $1 $19 {[%emt 0:00:05]} (29... Rxb6 30. Rc8 $18) 30. Bc7 {[%emt 0:05:35]} (30. Bxa5 Qa1+ 31. Ke2 b3 32. axb3 (32. Rc8+ $2 Kh7 $19) 32... Qxa5 $19) 30... Qa1+ {[%emt 0:02:36]} 31. Qc1 {[%emt 0:00:29] Black must now prevent Qxa1.} ({Don't play} 31. Ke2 Rb7 32. Bb6 (32. Bxa5 $2 Ra7 $19) (32. Bxd6 Qg1 $17) 32... Qh1 $17) 31... Qxc1+ {[%emt 0:00:08]} ({Black should try} 31... Qxa2 $1 $11 32. Rc2 (32. Bxb8 b3 $17) 32... Qb3 33. Bxb8 Qd3+ 34. Re2 b3) 32. Rxc1 $11 {[%emt 0:00:09][%mdl 4096] Endgame KRB-KRB} Rc8 {[%emt 0:00:02] Black cannot hold the game after this.} (32... Rb5 $16 {is a better defense.}) 33. Rc6 $18 {[%emt 0:00:15]} Ra8 {[%emt 0:04:06] Hoping for ...a4.} 34. Bxd6 {[%emt 0:00:20]} Bf8 {[%emt 0:00:06]} 35. Bxf8 {[%emt 0:00:51]} Kxf8 {[%emt 0:00:01] KR-KR} 36. Rc4 {[%emt 0:00:01]} Rb8 {[%emt 0:01:13]} 37. Ke2 {[%emt 0:00:41]} b3 $2 {[%emt 0:01:17]} (37... a4 {might work better.} 38. Kd3 Ke8) 38. axb3 {[%emt 0:00:20]} Rxb3 {[%emt 0:00:01]} 39. Ra4 {[%emt 0:00:14]} Rb2+ {[%emt 0:00:05]} 40. Ke3 {[%emt 0:00:06]} Rxg2 {[%emt 0:00:32]} (40... Rb5 $142 41. Kd4 Ke7) 41. Rxa5 {[%emt 0:00:09]} Rh2 {[%emt 0:00:56]} 42. d6 {[%emt 0:00:07] Threatening mate with Ra8+.} Ke8 {[%emt 0:00:04]} 43. Ra7 {[%emt 0:00:06]} Rxh3 {[%emt 0:00:10]} 44. Re7+ {[%emt 0:00:12]} Kf8 {[%emt 0:00:35]} 45. Re5 {[%emt 0:00:09] Weighted Error Value: White=0.32/Black=0.48} 1-0

[Event "ITT 1st Parada Jamundi 2022"]
[Site "Jamundi Valle"]
[Date "2022.12.09"]
[Round "6.8"]
[White "Malka, Samuel"]
[Black "Campos Gomez, Manuel"]
[Result "1/2-1/2"]
[ECO "D55"]
[WhiteElo "2265"]
[BlackElo "2322"]
[Annotator "TA"]
[PlyCount "60"]
[EventDate "2022.12.05"]
[EventType "swiss"]
[EventCountry "COL"]
[SourceTitle "playchess.com"]
[Source "ChessBase"]
[SourceQuality "1"]
[TimeControl "5400+30"]

{[%evp 13,60,4,6,0,0,0,26,-21,-10,-29,-26,-26,-25,-25,-27,-171,-32,-31,-29,-27,-27,-23,10,-15,0,-21,0,0,0,0,0,0,0,0,0,0,12,0,0,0,0,0,0,0,0,0,0,0,0]} 1. d4 {[%emt 0:00:04]} Nf6 {[%emt 0:02:36]} 2. c4 {[%emt 0:00:41]} b6 {[%emt 0:00:21]} 3. Nc3 {[%emt 0:03:46]} Bb7 {[%emt 0:00:06]} 4. Qc2 {[%emt 0:01:44]} d5 {[%emt 0:00:07]} 5. Nf3 {[%emt 0:03:12]} e6 {[%emt 0:03:17]} 6. Bg5 {[%emt 0:05:11]} Be7 {[%emt 0:03:12]} 7. e3 $1 {[%emt 0:01:05] 7.e3 scores better than 7.cxd5.} O-O {[%emt 0:02:16]} 8. Rd1 {[%emt 0:05:36] D55: Queen's Gambit Declined: 4 Bg5 Be7: Lines without ...h6 and 6...h6 7 Bxf6.} Nbd7 {[%emt 0:00:44]} 9. Bd3 {[%emt 0:05:49]} h6 {[%emt 0:00:55] [#] White must now prevent ...dxc4.} 10. Bh4 {[%emt 0:01:40]} (10. cxd5 {might be stronger.} hxg5 11. dxe6) 10... c5 $11 {[%emt 0:08:14]} 11. cxd5 {[%emt 0:07:01]} Nxd5 {[%emt 0:02:57]} 12. Bxe7 {[%emt 0:00:35]} Qxe7 {[%emt 0:00:46]} 13. Nxd5 {[%emt 0:00:25] [#]} Bxd5 $146 {[%emt 0:03:11]} ({Predecessor:} 13... exd5 14. O-O Rac8 15. Qe2 cxd4 16. Nxd4 Nc5 17. Bf5 Ba6 18. Qg4 Rc7 19. Rfe1 g6 {1-0 (30) Kayser,I-Antila,T ICCF corr 1991}) 14. Bh7+ {[%emt 0:03:10]} Kh8 {[%emt 0:00:01] [#] And now ...Bxf3 would win.} 15. Be4 {[%emt 0:00:12]} Bxe4 {[%emt 0:01:58]} 16. Qxe4 {[%emt 0:00:05]} c4 {[%emt 0:00:56]} (16... Nf6 $5 {[%cal Rf6e4]} 17. Qb1 cxd4 18. Rxd4 Rfc8 $11) 17. O-O {[%emt 0:00:56]} Qb4 {[%emt 0:01:15]} 18. Rd2 {[%emt 0:01:57] The position is equal.} Kg8 {[%emt 0:00:57]} 19. Rfd1 {[%emt 0:05:24][%cal Bf1d1,Bd1c1,Bc1c7][%mdl 32]} Qa4 {[%emt 0:01:29]} 20. Qb1 {[%emt 0:06:17]} (20. Rc1 {looks sharper.} Qxa2 21. Qc6 Nf6 22. Rxc4 Ne4 23. Rd1) 20... Nf6 {[%emt 0:04:16][%cal Bd7f6,Bf6d5,Bd5b4][%mdl 32] Prevents d5.} 21. b3 {[%emt 0:01:56]} cxb3 {[%emt 0:00:47]} 22. axb3 {[%emt 0:04:02]} Qb5 {[%emt 0:00:50]} 23. Rc1 {[%emt 0:03:13]} Nd5 {[%emt 0:01:21]} 24. Ne5 {[%emt 0:01:52]} Nb4 {[%emt 0:01:50]} 25. Rc7 {[%emt 0:04:19]} a5 {[%emt 0:02:14]} 26. Rd1 {[%emt 0:01:34][%cal Bd2d1,Bd1c1,Bc1c7][%mdl 32]} Rac8 {[%emt 0:02:53]} 27. Rdc1 {[%emt 0:02:16]} Rxc7 {[%emt 0:00:07]} 28. Rxc7 {[%emt 0:00:10]} Nd5 {[%emt 0:00:09]} 29. Rc1 {[%emt 0:01:17]} Qe2 {[%emt 0:05:40]} 30. Qc2 {[%emt 0:02:25]} Qxc2 {[%emt 0:00:58] Weighted Error Value: White=0.06 (flawless) /Black=0.05 (flawless)} 1/2-1/2

[Event "ITT 1st Parada Jamundi 2022"]
[Site "Jamundi Valle"]
[Date "2022.12.09"]
[Round "6.9"]
[White "Valdes Martinez, Miguel A."]
[Black "Mora Munoz, Alejandro"]
[Result "1-0"]
[ECO "A48"]
[WhiteElo "2104"]
[BlackElo "1959"]
[Annotator "TA"]
[PlyCount "89"]
[EventDate "2022.12.05"]
[EventType "swiss"]
[EventCountry "COL"]
[SourceTitle "playchess.com"]
[Source "ChessBase"]
[SourceQuality "1"]
[TimeControl "5400+30"]

{[%evp 9,89,11,5,0,15,14,20,7,27,26,26,30,43,11,15,13,16,10,8,3,71,71,89,48,38,18,27,35,77,67,69,33,16,28,38,17,61,40,42,39,33,38,37,0,0,0,0,0,0,0,595,574,506,468,665,665,664,664,664,664,664,664,664,664,664,664,664,664,657,657,29973,29975,29975,29976,29976,29977,29977,29978,29978,29979,29978,29978]} 1. d4 {[%emt 0:00:15]} Nf6 {[%emt 0:01:37]} 2. Nf3 {[%emt 0:00:05]} g6 {[%emt 0:00:10]} 3. e3 {[%emt 0:00:22]} Bg7 {[%emt 0:00:14]} 4. Be2 {[%emt 0:00:18]} O-O {[%emt 0:00:32]} 5. b4 {[%emt 0:00:07]} d6 {[%emt 0:00:08][%cal Oe7e5]} 6. O-O {[%emt 0:00:33] A48: 1 d4 Nf6 2 Nf3 g6: Torre, London and Colle Systems.} c5 {[%emt 0:00:05]} 7. bxc5 {[%emt 0:00:40]} dxc5 {[%emt 0:00:07]} 8. c3 {[%emt 0:00:04] The position is equal.} Nc6 {[%emt 0:07:03] [#]} 9. Ba3 $146 {[%emt 0:00:30]} ({Predecessor:} 9. Nbd2 Qc7 10. Bb2 Rd8 11. Qc2 e5 12. Rfd1 b6 13. Bb5 exd4 14. cxd4 Nb4 15. Qb3 {0-1 (35) Kreindl,H (2189)-Grimm,D (2288) Austria 2018}) 9... cxd4 {[%emt 0:00:24]} 10. cxd4 {[%emt 0:00:49]} Re8 {[%emt 0:00:40]} 11. Nbd2 {[%emt 0:04:07][%cal Bb1d2,Bd2b3,Bb3d4][%mdl 32]} e5 {[%emt 0:06:57]} 12. Nxe5 {[%emt 0:01:39]} (12. dxe5 {feels hotter.} Nxe5 13. Nxe5 Rxe5 14. Nb3) 12... Nxe5 {[%emt 0:00:45]} 13. dxe5 {[%emt 0:00:10]} Rxe5 {[%emt 0:03:02]} 14. Bf3 {[%emt 0:00:01] Inhibits Rd5.} Qd3 {[%emt 0:12:18] Against Nc4} (14... Bg4 $11 {keeps the balance.}) 15. Nb3 $16 {[%emt 0:03:22]} Qb5 {[%emt 0:01:27]} 16. Nd4 {[%emt 0:08:55]} (16. Rc1 {simplifies} Be6 17. Nd4 Qa6 18. Nxe6 Qxa3 19. Nd8) 16... Qa6 {[%emt 0:01:53]} 17. Qb3 {[%emt 0:02:34]} Ne4 {[%emt 0:04:15]} 18. Rfd1 {[%emt 0:02:49] Against Nd2} Nc5 {[%emt 0:11:31]} 19. Bxc5 {[%emt 0:10:44]} (19. Qb4 {simplifies} h5 20. h3 Bd7 21. Rab1) 19... Rxc5 {[%emt 0:00:19]} 20. Rac1 {[%emt 0:00:04]} Rxc1 {[%emt 0:04:32]} 21. Rxc1 {[%emt 0:00:15]} Bxd4 $1 {[%emt 0:01:11]} 22. exd4 {[%emt 0:00:10]} Qb6 {[%emt 0:01:20]} 23. Qxb6 {White is much more active.} (23. Qe3 $5 {[%cal Re3e8]} Bd7 24. Qf4 $14) 23... axb6 $14 {[%emt 0:00:01][%mdl 4096] Endgame KRB-KRB} 24. h3 {[%emt 0:03:41]} Bf5 {[%emt 0:03:59]} 25. g4 {[%emt 0:08:59]} Bd3 {[%emt 0:03:09]} 26. Bxb7 {[%emt 0:00:17]} (26. Rc3 $5 {[%cal Rc3d3]} Bb1 27. a3 $14 (27. Bxb7 Rd8 $14)) 26... Rxa2 {[%emt 0:00:16]} 27. d5 {[%emt 0:00:08]} Rd2 {[%emt 0:08:27]} 28. d6 {[%emt 0:05:00] [#] Hoping for d7.} Kg7 {[%emt 0:03:36]} 29. Bc6 {[%emt 0:05:26] Threatens to win with d7.} f5 $2 {[%emt 0:10:24][%mdl 8192] White now steadily converts the win.} (29... Bc2 $11 {and Black is okay.}) 30. d7 $18 {[%emt 0:02:56]} Be4 {[%emt 0:01:35] Against d8Q} 31. Bb5 {[%emt 0:00:27]} g5 {[%emt 0:08:14]} (31... Kf7 $142 32. Rc8 Rd1+ 33. Kh2 f4 34. Bc4+ (34. d8=B $2 Rh1#) (34. d8=N+ Kf6 35. f3 Bxf3 36. Rc6+ Kg5 37. Ne6+ Kh4) 34... Ke7 35. Re8+ Kxd7 36. Rxe4 Kc6) 32. f3 {[%emt 0:02:51]} Bxf3 {[%emt 0:04:57]} 33. Rc8 {[%emt 0:00:22]} fxg4 {[%emt 0:00:11]} 34. d8=Q {[%emt 0:00:46]} (34. d8=B $2 gxh3 $19) 34... Rxd8 {[%emt 0:00:24]} 35. Rxd8 {[%emt 0:00:08]} gxh3 {[%emt 0:00:07]} 36. Rd6 {[%emt 0:00:17]} g4 {[%emt 0:00:35] [#] Strongly threatening ...g3.} 37. Kh2 {[%emt 0:00:16] Against g3+} (37. Rxb6 g3 38. Kf1 h2 39. Ke1 h1=Q+ 40. Kd2 g2 41. Re6 g1=Q 42. Re7+ Kf6) 37... h5 {[%emt 0:00:10]} 38. Rxb6 {[%emt 0:04:54]} Kh7 {[%emt 0:01:38]} 39. Bc6 {[%emt 0:00:34] Threatening mate with Bxf3.} Bxc6 {[%emt 0:00:33]} 40. Rxc6 {[%emt 0:00:01] KR-K3P. White mates.} Kg7 {[%emt 0:00:01]} 41. Kg3 {[%emt 0:00:29]} Kh7 {[%emt 0:00:22]} 42. Kh4 {[%emt 0:00:39]} Kg7 {[%emt 0:00:08]} 43. Rc5 {[%emt 0:01:17]} (43. Kxh5 h2 44. Rg6+ (44. Kxg4 h1=Q $19) 44... Kf7 45. Rxg4 h1=Q+ $19) 43... h2 {[%emt 0:02:10]} 44. Rc1 {[%emt 0:00:09]} (44. Rxh5 h1=Q+ 45. Kxg4 Qe4+ 46. Kh3 Kg6 47. Rh4 Qf3+ 48. Kh2 Kg5 49. Rh3 Qf2+ 50. Kh1 Kf4 51. Rh8 Qa2 52. Rh2 Qd5+ 53. Rg2 Kf3 54. Kh2 Qh5+ 55. Kg1 Qh4 56. Rg8 Qe1+ 57. Kh2 Qe5+ 58. Kh1 Qa1+ 59. Kh2 Qa2+ 60. Kg1 Qxg8+ 61. Kf1 Qg2+ 62. Ke1 Qe2#) 44... Kg6 {[%emt 0:00:17]} 45. Rh1 {[%emt 0:00:36] Weighted Error Value: White=0.07 (flawless) /Black=0.45} 1-0

[Event "ITT 1st Parada Jamundi 2022"]
[Site "Jamundi Valle"]
[Date "2022.12.09"]
[Round "6.10"]
[White "Herrera, Juan Sebastian"]
[Black "Mateus, Alejandro"]
[Result "1-0"]
[ECO "D10"]
[WhiteElo "2297"]
[BlackElo "2308"]
[Annotator "TA"]
[PlyCount "85"]
[EventDate "2022.12.05"]
[EventType "swiss"]
[EventCountry "COL"]
[SourceTitle "playchess.com"]
[Source "ChessBase"]
[SourceQuality "1"]
[TimeControl "5400+30"]

{[%evp 11,85,25,33,32,68,62,102,104,108,111,139,143,129,114,194,196,357,352,345,169,182,182,182,183,284,141,169,154,169,177,298,0,18,17,72,75,40,16,35,45,129,116,129,120,189,175,759,769,751,779,773,775,764,769,702,672,684,621,1606,1625,1371,1371,29972,29973,29973,29974,29961,12838,12837,12838,12837,12837,12837,12836,29992,29990]} 1. d4 {[%emt 0:00:25]} d5 {[%emt 0:00:07]} 2. c4 {[%emt 0:00:04]} c6 {[%emt 0:00:06]} 3. cxd5 {[%emt 0:00:04]} cxd5 {[%emt 0:00:05]} 4. Bf4 {[%emt 0:00:04]} Nc6 {[%emt 0:00:13]} 5. e3 {[%emt 0:03:19]} Nf6 {[%emt 0:00:43]} 6. Nc3 {[%emt 0:00:06]} Bg4 {[%emt 0:01:06]} 7. Qb3 {[%emt 0:01:21] D10: Slav Defence: 3 cxd5 (without early Nf3) and 3 Nc3.} Qd7 {[%emt 0:09:19]} 8. h3 {[%emt 0:01:38]} Bh5 {[%emt 0:16:42]} 9. g4 $1 {[%emt 0:03:11] Prevents e6. White is better.} Bg6 {[%emt 0:00:07]} 10. Nf3 {[%emt 0:06:04]} e6 {[%emt 0:07:55]} 11. Ne5 $1 {[%emt 0:01:05]} Qc8 {[%emt 0:00:13] [#]} (11... Nxe5 $2 12. dxe5 a6 13. exf6 $18) 12. Rc1 $146 {[%emt 0:12:43][%mdl 2048] Black is under strong pressure.} ({Predecessor:} 12. h4 Nd7 13. Nxc6 bxc6 14. h5 Be4 15. Nxe4 dxe4 16. Rc1 e5 17. Bxe5 Nxe5 18. dxe5 Qxg4 19. Qa4 Qd7 20. Rxc6 Rb8 21. Rc8+ Rxc8 22. Bb5 {1-0 (22) Elsness,F (2436)-Mihajlov,S (2375) Larvik 2019}) 12... a6 {[%emt 0:21:44] Prevents Bb5.} (12... Be7 $16) 13. Na4 $18 {[%emt 0:21:01]} Bb4+ $2 {[%emt 0:03:37]} (13... Nd7 14. Nxd7 Qxd7) 14. Kd1 {[%emt 0:00:02]} Ba5 {[%emt 0:00:15]} 15. Nxc6 {[%emt 0:00:14] Active counter play!} (15. Nc5 $142 Ra7 16. Bxa6 $1 {[%mdl 512]} (16. Nxb7 Rxb7 17. Qa4 O-O $18) 16... Rxa6 17. Nxa6) 15... bxc6 {[%emt 0:00:28]} 16. Nb6 {[%emt 0:00:17]} Bxb6 {[%emt 0:02:49]} 17. Qxb6 {[%emt 0:00:02]} Be4 {[%emt 0:10:12]} (17... O-O {is a better defense.} 18. f3 (18. Qxc6 Be4 $16) (18. Rxc6 Qe8 $16) 18... Nd7 19. Qxc6 Qxc6 20. Rxc6 Rfc8) 18. Rg1 {[%emt 0:01:25]} (18. Qxc6+ $2 Qxc6 19. Rxc6 Bxh1 $19) (18. Rxc6 $18 {has better winning chances.} Qd8 19. Qxd8+ Kxd8 20. Rg1) 18... O-O $16 {[%emt 0:01:20]} 19. Rxc6 {[%emt 0:46:55]} (19. Qxc6 $6 Qxc6 20. Rxc6 Rfc8 $14) 19... Qd7 {[%emt 0:00:49]} 20. Bxa6 {[%emt 0:00:00] Strongly threatening Ke2.} Ra7 {[%emt 0:06:28] [#]} (20... Bf3+ $142 21. Kc1 Ra7) 21. a4 $2 {[%emt 0:00:00]} (21. Ke2 $1 $18) 21... Rfa8 {[%emt 0:01:22]} (21... Bf3+ $5 22. Kc1 Rfa8 $11) 22. Bb5 {[%emt 0:00:00] Hoping for Ke2.} Rb7 {[%emt 0:01:17]} (22... Bf3+ $11 {remains equal.} 23. Kc1 Rb7) 23. Qc5 {[%emt 0:00:00] aiming for Ke2.} Bf3+ {[%emt 0:00:18]} 24. Ke1 $1 {[%emt 0:00:00] Rd6 is the strong threat.} Ne4 {[%emt 0:00:10] Inhibits Rd6.} 25. Qc1 {[%emt 0:00:00][%cal Og1g3]} g5 {[%emt 0:00:10] White leaves nothing to chance now.} ({Black should play} 25... h6 $14) 26. Be5 {[%emt 0:00:00][%cal Og1g3]} f6 {[%emt 0:00:48] [#]} 27. Rg3 $1 {[%emt 0:00:00]} Nxg3 {[%emt 0:02:43]} (27... Bh1 $16 {was necessary.} 28. f3 Nxg3 29. Bxg3 Bxf3) 28. Bxg3 $18 {[%emt 0:00:00]} Qf7 $2 {[%emt 0:02:36]} (28... Rba7 29. Rb6 Qd8) 29. Rc8+ {[%emt 0:05:00]} Rxc8 {[%emt 0:00:12]} 30. Qxc8+ {[%emt 0:00:30]} Kg7 {[%emt 0:00:18]} 31. Be8 {[%emt 0:00:00] This pair of bishops is nice.} Qe7 {[%emt 0:00:59] [#] Prevents Bd6.} 32. Bd6 $1 {[%emt 0:00:00][%mdl 512]} Qxd6 {[%emt 0:00:14]} 33. Qxb7+ {[%emt 0:00:00][%mdl 4096] Endgame KQB-KQB} Kh6 {[%emt 0:00:31]} 34. Qc6 {[%emt 0:00:00] Prevents e5.} (34. Qf7 {leads to mate.} Qb4+ 35. Kf1 Qc4+ 36. Kg1 Qc1+ 37. Kh2 Qh1+ 38. Kg3 Qg2#) 34... Qh2 {[%emt 0:01:49]} 35. Qxe6 {[%emt 0:00:00][%cal Re6f6]} Qg1+ {[%emt 0:01:11]} 36. Kd2 {[%emt 0:00:00][%cal Re6f6]} Qd1+ {[%emt 0:03:35]} 37. Kc3 {[%emt 0:00:00][%cal Re6f6]} Qc1+ {[%emt 0:00:48]} 38. Kb4 {[%emt 0:00:00][%cal Re6f6]} Qxb2+ {[%emt 0:01:31]} 39. Ka5 {[%emt 0:00:00][%cal Re6f6]} Qc3+ {[%emt 0:00:17]} 40. Kb6 {[%emt 0:00:00][%cal Re6f6]} Qb4+ {[%emt 0:00:16]} 41. Kc7 {[%emt 0:00:00][%cal Re6f6]} Qa5+ {[%emt 0:01:17]} 42. Qb6 {[%emt 0:00:00]} Qc3+ {[%emt 0:00:05]} 43. Kd8 {[%emt 0:00:00] Weighted Error Value: White=0.30/Black=0.62} 1-0